bitfinex/quotes_ETHUSD_20260305
["timestamp","ask_amount","ask_price","bid_price","bid_amount"]
[1772718242313,2.64122551,2119.0,2118.6,0.0011]
[1772718242520,1.44,2118.9,2118.6,0.0011]
[1772718242917,1.17983588,2119.0,2118.6,2.52813166]
[1772718243128,1.441,2118.8,2118.6,2.52813166]
[1772718245535,1.442,2118.9,2118.7,2.52703166]
[1772718247132,1.442,2118.9,2118.7,3.70698979]
[1772718247331,4.08322551,2119.0,2118.6,0.0011]
[1772718247740,2.64122551,2118.9,2118.6,0.0011]
[1772718249130,1.443,2118.8,2118.6,0.0011]
[1772718251028,2.62295251,2118.8,2118.6,0.0011]
[1772718251226,1.443,2118.8,2118.6,0.0011]
[1772718251531,2.62292062,2118.8,2118.6,0.0011]
[1772718252029,1.443,2118.8,2118.6,0.0011]
[1772718253432,1.17996884,2118.7,2118.6,0.0011]
[1772718255616,2.64122551,2118.6,2118.5,0.0011]
[1772718257319,1.18002454,2118.6,2118.5,0.0011]
[1772718257517,1.445,2118.7,2118.5,0.0011]
[1772718258213,4.08622551,2118.7,2118.5,0.0011]
[1772718259443,2.62501678,2118.7,2118.5,0.0011]
[1772718259768,2.55446503,2118.6,2118.3,0.0011]
[1772718259929,2.55446503,2118.6,2117.8,2.64794547]
[1772718260856,2.55446503,2118.6,2117.6,4.72218605]
[1772718260857,2.55446503,2118.6,2117.6,2.64794547]
[1772718261056,2.55446503,2118.6,2117.1,0.16270224]
[1772718261057,2.55446503,2118.2,2117.1,0.16270224]
[1772718261259,2.44984117,2118.3,2117.1,0.16270224]
[1772718261260,2.55446503,2118.0,2117.1,0.16270224]
[1772718261447,3.73487959,2117.9,2117.1,3.99150765]
[1772718261628,4.72165824,2118.0,2117.1,3.99150765]
[1772718261629,1.447,2117.8,2117.2,2.64794547]
[1772718264145,1.447,2117.8,2117.4,0.0011]
[1772718266334,4.7212651,2118.1,2117.4,0.0011]
[1772718266539,2.62937906,2118.0,2117.4,2.59248026]
[1772718266740,5.14891712,2118.0,2117.4,2.59248026]
[1772718267269,2.51953806,2117.9,2117.4,0.0011]
[1772718267971,1.449,2118.0,2117.4,2.59248026]
[1772718268343,1.449,2117.9,2117.4,2.59248026]
[1772718268546,1.449,2117.9,2117.5,3.7720178]
[1772718268735,4.72037325,2118.5,2117.6,2.59138026]
[1772718268736,2.51953806,2118.5,2117.6,2.59138026]
[1772718268938,2.51953806,2118.3,2117.6,2.59138026]
[1772718269868,1.45,2118.4,2117.6,2.59138026]
[1772718270170,3.96953806,2118.4,2117.6,2.59138026]
[1772718270757,3.69972972,2118.3,2117.6,3.771959]
[1772718270946,3.69972972,2118.3,2117.7,2.59138026]
[1772718271566,2.63016253,2118.4,2117.7,2.59138026]
[1772718272270,5.14970059,2118.4,2117.7,2.59138026]
[1772718273369,5.14970059,2118.4,2117.7,3.77187611]
[1772718274365,2.51953806,2118.3,2117.6,2.59138026]
[1772718275272,3.69978543,2118.2,2117.6,2.59138026]
[1772718275475,3.69978543,2118.2,2117.6,3.77195089]
[1772718275770,1.18021913,2118.3,2117.7,2.59138026]
[1772718276871,1.451,2118.2,2117.7,2.59138026]
[1772718277068,1.451,2118.2,2117.8,0.0011]
[1772718277270,1.451,2118.2,2117.8,2.59248026]
[1772718277574,0.001,2118.1,2117.8,3.77292178]
[1772718277772,0.001,2118.1,2117.8,0.0011]
[1772718280569,0.001,2118.1,2117.8,2.59248026]
[1772718280768,0.001,2118.1,2117.8,0.0011]
[1772718282853,0.001,2118.1,2117.8,2.59248026]
[1772718284291,2.52053806,2118.1,2117.8,0.0011]
[1772718285757,2.52053806,2118.1,2117.5,2.59248026]
[1772718285758,2.52053806,2118.1,2117.5,0.0011]
[1772718285955,0.001,2118.1,2117.6,2.59138026]
[1772718286381,0.001,2118.1,2117.8,2.59138026]
[1772718287584,1.1810303,2118.6,2117.8,2.59138026]
[1772718287755,1.1810303,2118.6,2118.0,2.59138026]
[1772718288376,1.1810303,2118.6,2118.1,3.77278336]
[1772718289676,1.1810303,2118.6,2118.1,3.77168336]
[1772718290480,1.1810303,2118.6,2118.2,2.62781347]
[1772718291508,2.59313868,2118.5,2118.0,2.62781347]
[1772718291673,2.59313868,2118.5,2118.0,0.0011]
[1772718291872,2.59313868,2118.5,2118.3,0.0011]
[1772718292089,0.001,2118.4,2118.3,0.0011]
[1772718293697,1.454,2118.4,2118.3,0.0011]
[1772718295073,1.18000811,2118.7,2118.3,2.63001347]
[1772718295273,1.454,2118.6,2118.3,2.63001347]
[1772718295801,2.59313868,2119.4,2118.6,2.62781347]
[1772718296181,2.59313868,2119.4,2118.4,3.80794942]
[1772718296392,2.59313868,2119.4,2118.5,2.62781347]
[1772718297471,1.49535067,2119.5,2118.5,2.62781347]
[1772718297886,1.49535067,2119.5,2118.7,2.62781347]
[1772718298117,2.95033756,2119.5,2118.7,2.62781347]
[1772718298303,5.54347624,2119.5,2118.7,2.62781347]
[1772718299103,2.59313868,2119.4,2118.7,2.62781347]
[1772718300981,2.59313868,2119.4,2118.4,4.72030935]
[1772718300982,2.59313868,2119.2,2118.4,3.80794942]
[1772718301503,2.59313868,2119.2,2118.5,2.62781347]
[1772718303111,3.77288479,2119.1,2118.5,3.80786114]
[1772718303315,2.59313868,2119.0,2118.3,1.18124595]
[1772718303512,2.59313868,2118.9,2118.3,0.0011]
[1772718304619,2.59313868,2118.9,2118.0,0.0011]
[1772718304926,2.59313868,2118.9,2118.0,1.18145779]
[1772718305122,2.59313868,2118.7,2118.0,0.0011]
[1772718305720,2.59313868,2118.7,2118.1,2.62781347]
[1772718305927,1.455,2118.6,2118.1,2.62781347]
[1772718306117,1.455,2118.6,2118.3,0.0011]
[1772718306321,4.04913868,2118.7,2118.3,0.0011]
[1772718306530,2.59313868,2118.6,2118.3,0.0011]
[1772718307032,2.59313868,2118.4,2118.3,0.0011]
[1772718308033,1.18008024,2118.5,2118.3,0.0011]
[1772718308203,1.1800609,2118.6,2118.3,0.0011]
[1772718308643,2.63600876,2118.7,2118.3,0.0011]
[1772718309136,0.001,2118.7,2118.3,2.62891347]
[1772718311131,0.001,2118.7,2118.3,3.80905409]
[1772718311706,0.001,2118.7,2118.3,0.0011]
[1772718311707,2.59413868,2118.7,2118.3,0.0011]
[1772718312921,4.05013868,2118.7,2118.3,0.0011]
[1772718313218,2.59313868,2118.5,2118.0,0.0011]
[1772718315226,3.77326114,2118.5,2118.0,0.0011]
[1772718317741,2.59313868,2118.4,2118.0,0.0011]
[1772718318411,1.18012246,2118.5,2118.2,0.0011]
[1772718318937,2.56516197,2118.4,2118.2,0.0011]
[1772718319438,1.18019166,2118.3,2118.0,0.0011]
[1772718319640,6.17719436,2118.6,2118.0,0.0011]
[1772718319641,1.18011341,2118.5,2118.0,2.56417384]
[1772718321542,2.56516197,2118.4,2118.0,0.0011]
[1772718323734,4.72032098,2118.8,2118.0,0.0011]
[1772718323735,8.25735304,2120.7,2119.2,1.16663193]
[1772718323940,2.56516197,2123.3,2119.2,1.16663193]
[1772718323941,3.32648014,2122.0,2121.0,2.56307384]
[1772718324170,3.32648014,2122.0,2118.4,0.77644679]
[1772718324171,2.56516197,2122.0,2120.5,2.56307384]
[1772718324446,1.95322073,2121.0,2120.5,2.56307384]
[1772718324659,2.70874426,2121.7,2120.6,8.86510631]
[1772718324818,2.56516197,2121.5,2121.0,3.36061007]
[1772718325018,2.56516197,2121.5,2120.9,3.36061007]
[1772718325336,2.56516197,2121.5,2120.7,4.20076259]
[1772718325337,48.10488412,2121.4,2120.7,4.20076259]
[1772718325663,48.10488412,2121.4,2120.3,5.62706153]
[1772718325664,1.1785226,2121.3,2120.8,0.43698605]
[1772718325834,1.1785226,2121.3,2120.4,4.20076259]
[1772718326030,48.10488412,2121.2,2120.5,0.43698605]
[1772718326358,48.10488412,2121.2,2120.6,4.64384911]
[1772718326572,48.10488412,2121.2,2120.7,0.43698605]
[1772718326748,48.10488412,2121.2,2120.8,0.43698605]
[1772718326955,48.10488412,2121.2,2120.9,0.43698605]
[1772718327159,2.85448014,2121.1,2120.6,4.20686306]
[1772718327365,2.85448014,2121.1,2120.7,0.43572676]
[1772718327565,18.95936426,2121.1,2120.8,0.43572676]
[1772718327771,18.95936426,2121.1,2120.6,4.20686306]
[1772718327942,18.95936426,2121.1,2120.7,0.43562574]
[1772718328142,18.95936426,2121.1,2120.6,4.20686306]
[1772718328351,18.95936426,2121.1,2120.7,0.43518551]
[1772718328551,18.95936426,2121.1,2120.6,4.20686306]
[1772718328850,18.95936426,2121.1,2120.7,0.43507748]
[1772718329050,18.95936426,2121.1,2120.6,4.20686306]
[1772718329483,53.59901525,2121.1,2120.2,6.73615084]
[1772718329639,53.59901525,2121.1,2120.3,0.43465464]
[1772718329846,53.59901525,2121.1,2120.2,6.73615084]
[1772718330062,53.59901525,2121.1,2120.3,0.43465464]
[1772718330261,53.59901525,2121.1,2120.2,6.73615084]
[1772718330576,53.59901525,2121.1,2120.3,0.43448874]
[1772718330871,53.59901525,2121.1,2120.2,6.73615084]
[1772718331082,53.59901525,2121.1,2120.3,0.43434368]
[1772718331370,53.59901525,2121.1,2120.3,4.20686306]
[1772718331371,0.001,2121.0,2120.3,4.20686306]
[1772718331952,0.001,2121.0,2120.4,0.43401826]
[1772718332165,0.001,2121.0,2120.3,4.20686306]
[1772718332345,48.10488412,2120.9,2120.3,4.20686306]
[1772718332547,48.10488412,2120.9,2120.0,4.20686306]
[1772718332751,48.10488412,2120.9,2119.4,5.13762394]
[1772718332752,3.84780055,2120.8,2119.4,4.62626451]
[1772718332948,3.84780055,2120.6,2119.4,4.62626451]
[1772718333550,48.10488412,2120.5,2119.5,4.20686306]
[1772718333875,1.466,2120.8,2119.7,4.20686306]
[1772718334046,1.17885603,2120.7,2119.9,4.20686306]
[1772718334443,48.10488412,2120.6,2119.9,4.20686306]
[1772718334672,2.85448014,2120.5,2119.9,4.20686306]
[1772718334877,1.468,2120.4,2119.9,4.20686306]
[1772718335455,48.10488412,2120.3,2119.9,4.20686306]
[1772718335873,2.85448014,2120.5,2119.9,4.20686306]
[1772718336774,2.85448014,2120.5,2120.0,1.17924528]
[1772718336951,2.85448014,2120.5,2119.9,4.20686306]
[1772718337153,2.85448014,2120.5,2120.0,2.77496243]
[1772718337355,45.76315164,2120.5,2120.1,2.77496243]
[1772718337674,45.76315164,2120.5,2120.2,2.77496243]
[1772718337858,45.76315164,2120.5,2120.3,2.77496243]
[1772718338058,41.06745364,2120.5,2120.4,2.77496243]
[1772718338264,16.10488412,2120.5,2120.4,2.77496243]
[1772718338449,1.472,2120.6,2120.4,2.77496243]
[1772718338653,41.06745364,2120.5,2119.9,5.38615908]
[1772718338853,41.06745364,2120.5,2120.0,3.9549277]
[1772718339059,41.06745364,2120.5,2120.1,9.1556868]
[1772718339060,37.25745364,2120.5,2120.1,9.1556868]
[1772718339267,37.25745364,2120.5,2120.2,2.7756868]
[1772718339460,37.25745364,2120.5,2120.3,2.7756868]
[1772718339780,37.25745364,2120.5,2120.1,6.38]
[1772718339980,37.25745364,2120.5,2120.2,2.77585708]
[1772718340274,37.25745364,2120.5,2120.3,2.77585708]
[1772718340479,37.25745364,2120.5,2120.1,6.38]
[1772718340480,38.43644178,2120.5,2120.1,6.38]
[1772718340676,37.25745364,2120.5,2120.2,2.77633898]
[1772718340856,37.25745364,2120.5,2120.3,2.77633898]
[1772718341178,37.25745364,2120.5,2120.1,6.38]
[1772718341484,38.43642395,2120.5,2120.2,2.77606409]
[1772718341678,38.43642395,2120.5,2120.3,2.77606409]
[1772718341890,38.43642395,2120.5,2120.1,6.38]
[1772718342093,37.25745364,2120.5,2120.2,2.77667903]
[1772718342292,37.25745364,2120.5,2119.9,4.20686306]
[1772718342293,32.44425791,2120.5,2120.3,2.77667903]
[1772718342584,1.481,2120.9,2120.4,2.77667903]
[1772718342888,1.481,2120.9,2119.8,8.91814094]
[1772718342889,3.84780055,2120.6,2119.5,5.61518935]
[1772718343061,3.84780055,2120.6,2119.8,2.77783652]
[1772718343062,1.483,2120.5,2119.8,2.77783652]
[1772718343262,1.483,2120.5,2119.9,2.77783652]
[1772718343263,33.92725791,2120.5,2119.9,2.77783652]
[1772718343467,33.92725791,2120.5,2120.0,4.19226328]
[1772718343468,32.44425791,2120.5,2120.0,4.19226328]
[1772718343769,32.44425791,2120.5,2120.1,2.77893652]
[1772718343990,32.44425791,2120.5,2120.2,2.77783652]
[1772718344318,1.486,2120.4,2120.3,2.77783652]
[1772718345078,1.486,2120.4,2120.2,2.77783652]
[1772718345285,1.486,2120.4,2120.3,2.77783652]
[1772718345725,33.93025791,2120.4,2120.3,2.77783652]
[1772718346607,35.10928073,2120.4,2120.3,2.77783652]
[1772718346787,30.84554738,2120.3,2119.9,0.0011]
[1772718346973,16.33937379,2120.2,2119.9,0.0011]
[1772718347672,1.486,2120.4,2119.9,0.0011]
[1772718347876,29.66642139,2120.3,2119.9,0.0011]
[1772718348242,29.66642139,2120.3,2120.0,0.43581463]
[1772718348501,4.71631229,2120.8,2120.1,0.43581463]
[1772718348502,1.494,2120.5,2120.1,0.43581463]
[1772718348702,1.495,2120.5,2119.9,1.46323373]
[1772718349002,0.001,2120.8,2119.9,1.46323373]
[1772718349003,0.001,2120.8,2120.2,1.17913404]
[1772718349192,29.66642139,2120.7,2120.3,0.43582491]
[1772718349373,29.66642139,2120.7,2120.4,0.43582491]
[1772718349699,16.33937379,2120.7,2120.5,0.43582491]
[1772718349873,16.33937379,2120.7,2120.2,5.37989663]
[1772718350069,16.33937379,2120.7,2120.3,0.43621899]
[1772718350267,16.33937379,2120.7,2120.4,0.43621899]
[1772718350473,16.33937379,2120.7,2120.5,0.43621899]
[1772718350691,13.97765677,2120.7,2120.6,0.43621899]
[1772718350887,13.97765677,2120.7,2120.4,0.43674654]
[1772718351082,27.30470437,2120.6,2120.5,0.43674654]
[1772718352193,14.06181105,2120.6,2120.5,0.43674654]
[1772718352396,27.60202061,2120.6,2120.5,0.43674654]
[1772718352701,21.98872914,2120.6,2120.5,0.43674654]
[1772718353078,21.98872914,2120.6,2120.5,1.61571376]
[1772718353079,13.06614288,2120.6,2120.5,1.61571376]
[1772718353288,12.4532519,2120.6,2120.5,0.43674654]
[1772718353493,12.4532519,2120.6,2120.5,1.61571376]
[1772718353694,0.001,2120.8,2120.5,1.61571376]
[1772718353996,10.60814822,2120.7,2120.6,0.43674654]
[1772718354993,10.60814822,2120.7,2120.6,1.61565816]
[1772718355204,10.60814822,2120.7,2120.6,4.99605071]
[1772718355925,0.001,2120.8,2120.6,0.43674654]
[1772718356086,10.60814822,2120.7,2120.6,3.38059328]
[1772718356288,10.60814822,2120.7,2120.6,0.44016484]
[1772718356601,0.001,2120.8,2120.6,0.44016484]
[1772718356792,0.001,2120.8,2120.7,0.44016484]
[1772718356995,1.509,2121.1,2120.8,1.17880045]
[1772718357204,10.60814822,2121.0,2120.9,0.44016484]
[1772718357400,4.71296004,2122.0,2121.0,0.29820951]
[1772718357401,4.52019492,2121.9,2121.0,0.29820951]
[1772718357607,4.52019492,2121.9,2121.4,3.38011178]
[1772718357812,4.69566079,2121.8,2121.5,0.44016484]
[1772718357988,4.69566079,2121.8,2121.3,3.38011178]
[1772718357989,4.52019492,2121.7,2121.6,0.44016484]
[1772718358894,4.52019492,2121.7,2121.2,3.38011178]
[1772718359094,4.52019492,2121.7,2121.1,3.38011178]
[1772718359095,4.52019492,2121.5,2121.1,3.38011178]
[1772718359408,4.52019492,2121.5,2121.0,3.38011178]
[1772718359595,1.43952842,2121.4,2120.9,4.55885138]
[1772718359796,1.43952842,2121.4,2120.9,3.38011178]
[1772718359998,1.43952842,2121.4,2120.8,4.55888202]
[1772718360390,4.52019492,2121.3,2120.8,3.38011178]
[1772718360591,1.513,2121.2,2120.7,3.58329798]
[1772718360786,2.95252842,2121.2,2120.7,3.58329798]
[1772718361016,1.43952842,2121.1,2120.7,4.76215299]
[1772718362215,0.97989919,2121.1,2120.7,4.76215299]
[1772718362393,0.97989919,2121.1,2120.7,3.58329798]
[1772718362595,0.97989919,2121.1,2120.7,0.2031862]
[1772718362938,1.515,2121.0,2120.6,3.81]
[1772718363130,2.69374487,2120.9,2120.6,3.81]
[1772718364237,2.69374487,2120.9,2120.4,3.81]
[1772718364396,2.69374487,2120.9,2120.3,0.0011]
[1772718365126,4.34984322,2120.8,2120.3,0.0011]
[1772718365914,2.69374487,2120.9,2120.3,0.0011]
[1772718365915,5.86684322,2120.7,2120.3,0.0011]
[1772718366704,1.517,2120.6,2120.3,0.0011]
[1772718367049,0.2186029,2120.5,2120.3,0.0011]
[1772718367820,4.34984322,2120.7,2120.3,0.0011]
[1772718368024,1.518,2120.6,2120.3,0.0011]
[1772718368625,4.34984322,2121.1,2120.3,0.0011]
[1772718368965,1.519,2121.0,2120.3,1.0592605]
[1772718369176,6.06420332,2121.4,2120.4,1.17902282]
[1772718370037,6.06420332,2121.4,2120.4,1.18896616]
[1772718370825,6.06420332,2121.4,2120.5,0.43987258]
[1772718371030,4.88573627,2121.4,2120.6,0.43987258]
[1772718371346,6.06420525,2121.4,2120.7,1.61868337]
[1772718371523,6.06420525,2121.4,2120.8,0.43987258]
[1772718371725,2.25420525,2121.4,2120.9,4.24987258]
[1772718371955,2.25420525,2121.4,2121.0,0.43987258]
[1772718372131,2.25420525,2121.4,2121.1,0.43987258]
[1772718372331,1.52,2121.3,2120.9,3.81]
[1772718372525,1.52,2121.3,2121.0,0.43985805]
[1772718372729,1.52,2121.3,2121.1,0.43985805]
[1772718372928,1.52,2121.3,2120.9,3.81]
[1772718372929,6.9492708,2121.3,2120.9,3.81]
[1772718373135,6.9492708,2121.3,2121.0,0.43985805]
[1772718373459,6.9492708,2121.3,2120.9,3.81]
[1772718373631,6.9492708,2121.3,2121.0,0.43992264]
[1772718373833,6.9492708,2121.3,2120.9,3.81]
[1772718374161,6.9492708,2121.3,2121.0,0.43993093]
[1772718374463,1.52,2121.2,2120.9,3.81]
[1772718374644,1.52,2121.2,2121.0,0.43995634]
[1772718374831,1.52,2121.2,2120.9,3.81]
[1772718375031,1.52,2121.2,2121.0,0.43995634]
[1772718375232,1.52,2121.2,2121.1,0.43995634]
[1772718375645,4.25074528,2121.1,2120.9,3.81]
[1772718375961,4.25074528,2121.1,2120.6,2.41879789]
[1772718376130,4.25074528,2121.1,2120.5,0.0011]
[1772718377045,4.25074528,2120.9,2120.5,0.0011]
[1772718379062,4.78108242,2120.7,2120.5,0.0011]
[1772718379256,6.30308242,2120.6,2120.5,0.0011]
[1772718380436,6.30408242,2120.6,2120.5,0.0011]
[1772718380837,1.523,2120.6,2120.5,0.0011]
[1772718381050,0.065536,2121.7,2120.6,4.37147546]
[1772718381268,0.10616832,2123.4,2120.6,4.37147546]
[1772718381269,5.95888323,2122.6,2121.0,3.37635925]
[1772718381577,4.78108242,2121.9,2120.7,5.71575792]
[1772718381741,4.78108242,2121.7,2120.7,4.49675792]
[1772718381941,1.509,2121.6,2120.7,4.49675792]
[1772718382158,7.42911644,2121.6,2120.7,4.49675792]
[1772718382364,12.21019886,2121.6,2120.7,4.49675792]
[1772718382968,4.78108242,2121.5,2120.5,0.0011]
[1772718383171,4.78108242,2121.5,2120.5,1.18006722]
[1772718383466,4.78108242,2121.5,2120.5,5.67682514]
[1772718383849,5.92011644,2121.4,2120.5,5.67682514]
[1772718384170,7.43211644,2121.4,2120.6,4.49675792]
[1772718384945,7.43211644,2121.4,2120.7,0.0011]
[1772718385168,12.21319886,2121.4,2120.7,0.0011]
[1772718385547,4.78108242,2121.3,2120.7,0.0011]
[1772718386046,8.61061172,2121.4,2120.5,0.0011]
[1772718386047,4.94953758,2121.1,2120.5,0.0011]
[1772718386249,5.92011644,2121.2,2120.5,0.0011]
[1772718386250,4.94953758,2120.9,2120.5,0.0011]
[1772718386559,2.58849802,2120.8,2120.3,0.0011]
[1772718386874,7.43511644,2120.8,2120.3,0.0011]
[1772718389282,5.92011644,2120.8,2120.3,0.0011]
[1772718389452,1.519,2120.7,2120.3,0.0011]
[1772718390643,5.92011644,2120.6,2120.3,0.0011]
[1772718390920,4.94953758,2120.5,2120.0,0.0011]
[1772718391073,4.94953758,2120.4,2119.8,0.0011]
[1772718391392,4.94953758,2120.4,2119.3,7.47660951]
[1772718391393,4.94953758,2120.2,2119.3,4.90517075]
[1772718391604,4.94953758,2120.2,2119.2,1.20790695]
[1772718391605,4.94953758,2120.0,2119.2,0.02822059]
[1772718391769,4.94953758,2120.0,2118.8,1.1799105]
[1772718391979,4.94953758,2119.8,2118.8,1.1799105]
[1772718392669,4.94953758,2119.8,2118.7,1.17992908]
[1772718392864,10.86855402,2119.7,2118.6,8.76100176]
[1772718393090,1.522,2119.6,2118.7,0.4394494]
[1772718393296,1.522,2119.6,2118.7,4.90517075]
[1772718393595,1.522,2119.6,2118.8,1.61879255]
[1772718393795,1.522,2119.6,2118.8,1.17991315]
[1772718393992,5.91901644,2119.7,2118.9,4.90517075]
[1772718394198,5.91901644,2119.5,2118.9,4.90517075]
[1772718394394,1.522,2119.6,2118.9,4.90517075]
[1772718395597,8.62098796,2119.9,2119.0,1.17980179]
[1772718395598,7.44201644,2119.5,2119.0,1.17980179]
[1772718395769,1.523,2119.5,2119.0,1.17980179]
[1772718397277,5.91901644,2119.4,2119.0,1.17980179]
[1772718397474,1.524,2119.7,2119.0,6.08497254]
[1772718397677,10.86855402,2119.6,2118.9,1.17981716]
[1772718397872,10.86855402,2119.6,2118.7,4.90517075]
[1772718397873,10.86855402,2119.6,2119.1,0.0011]
[1772718398075,0.001,2119.4,2119.1,0.0011]
[1772718398502,0.001,2119.4,2117.9,0.14948499]
[1772718398503,4.95053758,2119.4,2118.4,6.08527615]
[1772718398710,10.86745402,2119.3,2118.6,0.0011]
[1772718398906,1.525,2119.2,2118.6,0.0011]
[1772718399104,12.39245402,2119.2,2118.6,0.0011]
[1772718399333,10.86745402,2119.1,2118.6,0.0011]
[1772718399601,10.86745402,2119.1,2118.2,1.18132573]
[1772718399602,6.12933937,2119.0,2118.2,0.0011]
[1772718400235,4.94953758,2119.0,2118.2,0.0011]
[1772718400816,5.91791644,2118.9,2118.2,0.0011]
[1772718401221,10.86745402,2118.9,2118.2,0.0011]
[1772718401621,6.12945073,2118.8,2118.2,0.0011]
[1772718401845,1.526,2118.7,2118.2,0.0011]
[1772718402171,12.39345402,2118.7,2118.2,0.0011]
[1772718402543,5.91791644,2118.6,2118.2,0.0011]
[1772718403972,4.94953758,2119.1,2118.2,4.90627075]
[1772718404154,4.84441842,2118.7,2118.2,4.90627075]
[1772718404324,6.37241842,2119.0,2118.2,4.90627075]
[1772718404529,1.07349802,2118.9,2118.2,4.90627075]
[1772718404751,2.60149802,2118.9,2118.2,4.90627075]
[1772718405746,2.60149802,2118.9,2118.3,6.08536241]
[1772718406146,1.07349802,2118.9,2118.3,6.08536241]
[1772718406348,2.60249802,2118.9,2118.3,6.08536241]
[1772718407065,1.07349802,2118.9,2118.3,6.08536241]
[1772718407366,2.60249802,2118.9,2118.3,6.08536241]
[1772718407937,1.529,2118.9,2118.3,6.08536241]
[1772718408633,3.63691644,2118.8,2118.2,1.18131702]
[1772718409563,3.63691644,2118.8,2118.2,6.10382484]
[1772718409764,3.63691644,2118.7,2118.2,6.10382484]
[1772718410465,3.63691644,2118.7,2118.5,0.0011]
[1772718412168,1.53,2119.0,2118.5,0.0011]
[1772718412337,3.63691644,2118.9,2118.5,0.0011]
[1772718414162,3.63691644,2118.9,2118.5,1.18118024]
[1772718415267,2.680917,2118.9,2118.6,4.92250782]
[1772718415467,0.001,2119.4,2118.6,4.92250782]
[1772718415856,0.001,2119.4,2118.8,4.92250782]
[1772718416252,0.001,2119.4,2118.8,9.64193771]
[1772718416650,0.001,2119.4,2118.9,1.17985747]
[1772718420151,0.001,2119.4,2118.9,6.10236529]
[1772718420465,0.001,2119.4,2119.0,0.43994308]
[1772718420781,0.001,2119.4,2118.9,6.10236529]
[1772718421079,0.001,2119.4,2119.0,0.43992855]
[1772718421319,2.49214594,2119.9,2119.0,0.43992855]
[1772718421320,3.3400157,2122.7,2120.5,0.91223422]
[1772718421460,37.30776196,2123.0,2122.2,1.75222289]
[1772718421800,3.82392404,2123.7,2122.5,0.14948499]
[1772718422000,3.78202012,2123.6,2123.2,5.62419896]
[1772718422284,49.04603893,2123.6,2122.4,11.96524529]
[1772718422489,1.17730162,2123.5,2122.4,4.92250782]
[1772718422983,6.07302628,2123.5,2122.4,4.92250782]
[1772718423350,37.30776196,2123.4,2122.7,4.92250782]
[1772718423597,1.17710965,2123.9,2122.7,6.14650782]
[1772718423752,37.30776196,2123.8,2122.7,4.92250782]
[1772718423948,42.20348662,2123.8,2122.5,1.225]
[1772718424152,37.30776196,2123.7,2122.7,4.92250782]
[1772718424459,1.536,2124.0,2122.7,4.92250782]
[1772718425449,37.30776196,2123.9,2122.7,4.92250782]
[1772718425779,37.20776196,2123.9,2122.7,4.92250782]
[1772718426352,37.20776196,2123.9,2122.9,4.92250782]
[1772718426752,2.01024326,2124.6,2123.3,4.92250782]
[1772718426968,2.01024326,2124.6,2123.7,4.92250782]
[1772718426969,37.20776196,2124.5,2123.7,4.92250782]
[1772718427767,37.20776196,2124.5,2123.9,4.92250782]
[1772718428282,0.83354608,2124.6,2124.0,1.17702448]
[1772718428583,0.83354608,2124.6,2124.0,6.0995323]
[1772718428783,4.89572466,2125.5,2124.0,6.0995323]
[1772718428986,2.71824917,2125.4,2124.2,4.92250782]
[1772718429195,44.82173579,2125.4,2124.2,4.92250782]
[1772718429963,4.89572466,2125.3,2124.1,2.58873546]
[1772718430504,4.89572466,2125.3,2124.2,1.17691366]
[1772718430505,38.38412183,2125.2,2124.2,1.17691366]
[1772718430661,4.89572466,2124.8,2123.3,4.92250782]
[1772718430999,6.43972466,2124.7,2123.3,4.92250782]
[1772718431199,4.89572466,2124.6,2123.3,4.92250782]
[1772718431357,1.545,2124.5,2123.3,4.92250782]
[1772718431989,42.10348662,2124.4,2123.1,1.17752343]
[1772718432158,4.89572466,2124.3,2123.1,1.17752343]
[1772718432369,1.17691366,2124.2,2123.1,1.17752343]
[1772718432599,1.17691366,2124.2,2123.1,6.10003125]
[1772718432600,37.20776196,2124.2,2123.1,6.10003125]
[1772718433262,4.89572466,2124.7,2123.1,6.10003125]
[1772718433263,37.20776196,2124.1,2123.3,4.92250782]
[1772718433591,1.547,2124.7,2123.5,4.92250782]
[1772718433765,37.20776196,2124.6,2123.5,4.92250782]
[1772718434381,1.17674746,2124.5,2123.6,1.17724618]
[1772718434557,41.91457146,2124.6,2123.6,1.17724618]
[1772718434558,38.38449321,2124.6,2123.6,1.17724618]
[1772718434758,38.38445619,2124.6,2123.6,1.17724618]
[1772718434990,38.38445619,2124.6,2123.6,6.099754]
[1772718435194,38.38445719,2124.6,2123.6,6.099754]
[1772718435364,43.28018185,2124.6,2123.2,4.92250782]
[1772718435568,4.89572466,2124.5,2123.3,1.17741251]
[1772718436383,0.001,2124.1,2123.3,1.17741251]
[1772718437463,0.001,2124.1,2123.4,4.92250782]
[1772718437667,37.20776196,2124.0,2123.4,4.92250782]
[1772718437897,37.20776196,2124.0,2123.3,2.41641251]
[1772718438064,37.20776196,2124.0,2123.1,1.17752343]
[1772718438266,37.20776196,2124.0,2123.1,6.10003125]
[1772718439204,37.20776196,2124.0,2123.3,1.17741251]
[1772718439702,37.20776196,2124.0,2123.3,7.32759949]
[1772718441774,37.20776196,2124.0,2123.3,8.56759949]
[1772718442182,37.20776196,2123.9,2123.4,6.15018698]
[1772718443002,30.70776196,2123.9,2123.4,6.15018698]
[1772718443217,30.70776196,2123.9,2123.3,2.41741251]
[1772718443218,0.001,2124.1,2123.6,6.15018698]
[1772718443374,30.70876196,2124.1,2123.7,1.17719075]
[1772718443703,6.27484188,2125.1,2123.9,6.29967197]
[1772718444202,6.27484188,2124.9,2123.7,1.17719075]
[1772718444496,6.27484188,2124.9,2124.0,1.241]
[1772718444817,6.27484188,2124.9,2123.7,1.17719075]
[1772718445096,1.17641745,2125.1,2123.7,1.17719075]
[1772718445097,6.27484188,2124.7,2123.7,1.17719075]
[1772718445275,7.83184188,2124.7,2123.7,1.17719075]
[1772718445467,30.70776196,2124.6,2123.7,7.32737773]
[1772718445668,30.70776196,2124.6,2123.8,1.241]
[1772718446797,30.70776196,2124.6,2123.8,7.70176692]
[1772718447166,30.70776196,2124.6,2123.9,6.61025191]
[1772718447369,30.70776196,2124.6,2124.0,1.17702448]
[1772718447775,30.64131577,2124.6,2124.0,1.17702448]
[1772718448175,1.559,2125.1,2124.0,7.6377914]
[1772718448878,1.1762904,2125.4,2124.2,6.46076692]
[1772718449079,6.10158227,2125.4,2124.3,3.81]
[1772718449389,6.10158227,2125.1,2124.3,4.98685818]
[1772718449588,7.66358227,2125.0,2124.3,3.81]
[1772718449790,0.001,2124.4,2124.3,3.4935053]
[1772718450095,0.001,2124.4,2124.1,4.67043]
[1772718450771,1.563,2125.1,2124.1,4.67043]
[1772718451071,1.563,2125.1,2124.2,3.4935053]
[1772718451270,1.563,2125.1,2124.3,2.80301441]